[Event "Late-Titled-Tuesday-Blitz-October-03-2023"]
[Site "Chess.com"]
[Date "2023.10.03"]
[Round "4"]
[White "GaiozNigalidze"]
[Black "Lady_Nika"]
[Result "1-0"]
[WhiteElo "2754"]
[BlackElo "2545"]
[TimeControl "180+1"]
[EndTime "14:38:18 PDT"]
[Termination "GaiozNigalidze won by resignation"]

1. d4 {[%clk 0:03:00.9]} 1... d5 {[%clk 0:03:00.1]} 2. c4 {[%clk 0:02:55.8]}
2... e6 {[%clk 0:03:00.1]} 3. Nc3 {[%clk 0:02:54.7]} 3... f5 {[%clk 0:03:00.1]}
4. g3 {[%clk 0:02:51.4]} 4... Nf6 {[%clk 0:03:00.1]} 5. Bg2 {[%clk 0:02:50]}
5... c6 {[%clk 0:03:00.4]} 6. b3 {[%clk 0:02:48.8]} 6... Bd6 {[%clk 0:02:59.9]}
7. Nf3 {[%clk 0:02:48.2]} 7... O-O {[%clk 0:02:59.8]} 8. O-O {[%clk 0:02:47.2]}
8... Nbd7 {[%clk 0:02:59.9]} 9. a4 {[%clk 0:02:47.2]} 9... Qe7 {[%clk
0:02:58.7]} 10. Bb2 {[%clk 0:02:44.1]} 10... Ne4 {[%clk 0:02:58.7]} 11. Qc1
{[%clk 0:02:44.2]} 11... f4 {[%clk 0:02:56.4]} 12. Nd2 {[%clk 0:01:55.8]} 12...
Nxc3 {[%clk 0:02:52.7]} 13. Qxc3 {[%clk 0:01:53.4]} 13... Nf6 {[%clk 0:02:47.7]}
14. Qd3 {[%clk 0:01:47.3]} 14... Bd7 {[%clk 0:02:46]} 15. Nf3 {[%clk 0:01:42.1]}
15... Be8 {[%clk 0:02:45.3]} 16. Ne5 {[%clk 0:01:41.3]} 16... Nd7 {[%clk
0:02:45]} 17. Nxd7 {[%clk 0:01:35.7]} 17... Qxd7 {[%clk 0:02:44.5]} 18. Ba3
{[%clk 0:01:33.1]} 18... Bg6 {[%clk 0:02:42.5]} 19. Qd2 {[%clk 0:01:32.7]} 19...
Rf6 {[%clk 0:02:38.1]} 20. Bxd6 {[%clk 0:01:30.8]} 20... Qxd6 {[%clk 0:02:38.3]}
21. Rac1 {[%clk 0:01:28.5]} 21... Raf8 {[%clk 0:02:37.3]} 22. a5 {[%clk
0:01:28]} 22... a6 {[%clk 0:02:36.9]} 23. c5 {[%clk 0:01:09.6]} 23... Qc7 {[%clk
0:02:34.4]} 24. b4 {[%clk 0:01:09.5]} 24... e5 {[%clk 0:02:34.1]} 25. dxe5
{[%clk 0:01:09.6]} 25... Qxe5 {[%clk 0:02:33.9]} 26. Rc3 {[%clk 0:01:06.6]}
26... Re8 {[%clk 0:02:31.3]} 27. Re1 {[%clk 0:01:03.3]} 27... fxg3 {[%clk
0:02:29.6]} 28. hxg3 {[%clk 0:01:02.1]} 28... Ref8 {[%clk 0:02:21.5]} 29. Rf3
{[%clk 0:00:56.5]} 29... Be4 {[%clk 0:02:20.8]} 30. Rxf6 {[%clk 0:00:55.9]}
30... Rxf6 {[%clk 0:02:20.2]} 31. Bxe4 {[%clk 0:00:42.7]} 31... Qxe4 {[%clk
0:02:20]} 32. f3 {[%clk 0:00:36.1]} 32... Qe5 {[%clk 0:02:17.8]} 33. Kf2 {[%clk
0:00:31.5]} 33... Rg6 {[%clk 0:01:53.4]} 34. Rg1 {[%clk 0:00:30.2]} 34... d4
{[%clk 0:01:49.9]} 35. Qd3 {[%clk 0:00:25.7]} 35... Rh6 {[%clk 0:01:37.2]} 36.
Kg2 {[%clk 0:00:21.8]} 36... Qe6 {[%clk 0:01:30.2]} 37. Kf2 {[%clk 0:00:16.4]}
37... Rh2+ {[%clk 0:01:28.1]} 38. Rg2 {[%clk 0:00:16.5]} 38... Qe3+ {[%clk
0:01:17.6]} 39. Qxe3 {[%clk 0:00:14.7]} 39... dxe3+ {[%clk 0:01:17.7]} 40. Kg1
{[%clk 0:00:15.3]} 40... Rh5 {[%clk 0:01:16]} 41. Rh2 {[%clk 0:00:14.9]} 41...
Rxh2 {[%clk 0:01:04.2]} 42. Kxh2 {[%clk 0:00:14.9]} 42... Kf7 {[%clk 0:01:04.9]}
43. Kg2 {[%clk 0:00:13.2]} 43... Ke6 {[%clk 0:01:05.6]} 44. f4 {[%clk
0:00:13.8]} 44... Kd5 {[%clk 0:01:06.3]} 45. Kf3 {[%clk 0:00:14.4]} 45... Kc4
{[%clk 0:01:04.8]} 46. Kxe3 {[%clk 0:00:14.5]} 46... Kxb4 {[%clk 0:01:05.1]} 47.
Kd4 {[%clk 0:00:15.4]} 47... Kxa5 {[%clk 0:01:05.4]} 48. e4 {[%clk 0:00:16.1]}
48... Kb4 {[%clk 0:01:05.3]} 49. e5 {[%clk 0:00:16.3]} 49... a5 {[%clk
0:01:05.3]} 50. e6 {[%clk 0:00:16.9]} 50... a4 {[%clk 0:01:06.2]} 51. e7 {[%clk
0:00:17.6]} 51... a3 {[%clk 0:01:07.1]} 52. e8=Q {[%clk 0:00:18.2]} 52... Kb3
{[%clk 0:01:06.9]} 53. Qe1 {[%clk 0:00:17.7]} 53... Kb2 {[%clk 0:01:06.3]} 54.
Qc3+ {[%clk 0:00:17.6]} 54... Ka2 {[%clk 0:01:06.1]} 55. Qb4 {[%clk 0:00:17.7]}
1-0

[Event "Late-Titled-Tuesday-Blitz-October-03-2023"]
[Site "Chess.com"]
[Date "2023.10.03"]
[Round "4"]
[White "FERNANDEZL1983"]
[Black "AleksandrAleksikov"]
[Result "1-0"]
[WhiteElo "2609"]
[BlackElo "2198"]
[TimeControl "180+1"]
[EndTime "14:38:19 PDT"]
[Termination "FERNANDEZL1983 won on time"]

1. e4 {[%clk 0:03:00.9]} 1... c5 {[%clk 0:02:58.1]} 2. Nf3 {[%clk 0:03:01]} 2...
d6 {[%clk 0:02:57.9]} 3. d4 {[%clk 0:03:00.9]} 3... Nf6 {[%clk 0:02:58]} 4. Nc3
{[%clk 0:03:00.5]} 4... cxd4 {[%clk 0:02:57.3]} 5. Nxd4 {[%clk 0:03:01.4]} 5...
a6 {[%clk 0:02:56.9]} 6. Bg5 {[%clk 0:03:01]} 6... e6 {[%clk 0:02:56.6]} 7. f4
{[%clk 0:03:01.6]} 7... Qb6 {[%clk 0:02:56.3]} 8. Qd2 {[%clk 0:02:59.7]} 8...
Qxb2 {[%clk 0:02:55.3]} 9. Rb1 {[%clk 0:03:00.4]} 9... Qa3 {[%clk 0:02:55.3]}
10. f5 {[%clk 0:03:00.6]} 10... Nc6 {[%clk 0:02:42.2]} 11. Nxc6 {[%clk
0:02:57.7]} 11... bxc6 {[%clk 0:02:40.9]} 12. fxe6 {[%clk 0:02:58.6]} 12... Bxe6
{[%clk 0:02:37.2]} 13. Bd3 {[%clk 0:02:57.6]} 13... Be7 {[%clk 0:02:32.9]} 14.
Rb7 {[%clk 0:02:55.4]} 14... Qc5 {[%clk 0:02:22.3]} 15. Be3 {[%clk 0:02:54.2]}
15... Qe5 {[%clk 0:02:18.5]} 16. O-O {[%clk 0:02:51.5]} 16... Nd7 {[%clk
0:02:15.1]} 17. Ne2 {[%clk 0:02:46.8]} 17... O-O {[%clk 0:02:12.3]} 18. Bd4
{[%clk 0:02:44.5]} 18... Qg5 {[%clk 0:02:03.2]} 19. Be3 {[%clk 0:02:43.2]} 19...
Qe5 {[%clk 0:02:02.1]} 20. Nd4 {[%clk 0:02:42.9]} 20... Rfc8 {[%clk 0:01:54.4]}
21. Kh1 {[%clk 0:02:35.3]} 21... Bf6 {[%clk 0:01:44.6]} 22. Nxe6 {[%clk
0:02:31.3]} 22... Qxe6 {[%clk 0:01:42.2]} 23. h3 {[%clk 0:02:26.4]} 23... Be5
{[%clk 0:01:33]} 24. Be2 {[%clk 0:02:25.3]} 24... Nf6 {[%clk 0:01:27.2]} 25. Bf3
{[%clk 0:02:25.3]} 25... Rab8 {[%clk 0:01:22.7]} 26. Rfb1 {[%clk 0:02:24.9]}
26... Rxb7 {[%clk 0:01:22]} 27. Rxb7 {[%clk 0:02:25.4]} 27... Qxa2 {[%clk
0:01:20.4]} 28. g4 {[%clk 0:02:24.2]} 28... Qa1+ {[%clk 0:01:18.4]} 29. Kg2
{[%clk 0:02:23.1]} 29... h6 {[%clk 0:01:15]} 30. h4 {[%clk 0:02:20.5]} 30... Qa4
{[%clk 0:01:11.1]} 31. Qd3 {[%clk 0:02:19]} 31... Re8 {[%clk 0:01:06.9]} 32. g5
{[%clk 0:02:18.8]} 32... hxg5 {[%clk 0:01:06.4]} 33. hxg5 {[%clk 0:02:19.5]}
33... Nh7 {[%clk 0:01:06]} 34. Be2 {[%clk 0:02:13.1]} 34... c5 {[%clk
0:01:00.6]} 35. Qc4 {[%clk 0:02:09.2]} 35... Qxc4 {[%clk 0:00:57.9]} 36. Bxc4
{[%clk 0:02:09.8]} 36... Rf8 {[%clk 0:00:56.8]} 37. g6 {[%clk 0:02:09.1]} 37...
Nf6 {[%clk 0:00:56.8]} 38. Bxf7+ {[%clk 0:02:08.5]} 38... Kh8 {[%clk 0:00:56.3]}
39. Rb1 {[%clk 0:02:09]} 39... Ng8 {[%clk 0:00:49.7]} 40. Kf3 {[%clk 0:02:01.3]}
40... Nh6 {[%clk 0:00:48.9]} 41. Bxh6 {[%clk 0:02:01.8]} 41... gxh6 {[%clk
0:00:47.2]} 42. Kg4 {[%clk 0:02:02.7]} 42... Kg7 {[%clk 0:00:46.6]} 43. Kf5
{[%clk 0:02:02.8]} 43... a5 {[%clk 0:00:43.1]} 44. Rb7 {[%clk 0:02:02.8]} 44...
h5 {[%clk 0:00:39]} 45. Kg5 {[%clk 0:02:01.7]} 45... Bf6+ {[%clk 0:00:35.5]} 46.
Kxh5 {[%clk 0:02:01.9]} 46... Rh8+ {[%clk 0:00:35]} 47. Kg4 {[%clk 0:02:01.9]}
47... Rh4+ {[%clk 0:00:32.9]} 48. Kg3 {[%clk 0:02:02.6]} 48... Kh6 {[%clk
0:00:30.4]} 49. Kf3 {[%clk 0:01:49.5]} 49... Kg5 {[%clk 0:00:27.9]} 50. Be8
{[%clk 0:01:48.1]} 50... Rh3+ {[%clk 0:00:22.8]} 51. Ke2 {[%clk 0:01:47]} 51...
Rc3 {[%clk 0:00:22]} 52. g7 {[%clk 0:01:45.1]} 52... Bxg7 {[%clk 0:00:20.6]} 53.
Rxg7+ {[%clk 0:01:44.1]} 53... Kf4 {[%clk 0:00:20.4]} 54. Re7 {[%clk 0:01:41.9]}
54... Rxc2+ {[%clk 0:00:18.9]} 55. Kd3 {[%clk 0:01:41.9]} 55... Rb2 {[%clk
0:00:17.9]} 56. Bc6 {[%clk 0:01:42.2]} 56... Rb3+ {[%clk 0:00:15.5]} 57. Kc2
{[%clk 0:01:38.4]} 57... Rb4 {[%clk 0:00:13.7]} 58. Bd5 {[%clk 0:01:38.6]} 58...
a4 {[%clk 0:00:12.7]} 59. Re6 {[%clk 0:01:39]} 59... Rb6 {[%clk 0:00:11.4]} 60.
Kd3 {[%clk 0:01:35.3]} 60... a3 {[%clk 0:00:11.4]} 61. Rf6+ {[%clk 0:01:35.8]}
61... Kg4 {[%clk 0:00:09.1]} 62. e5 {[%clk 0:01:35.5]} 62... Ra6 {[%clk
0:00:05.6]} 63. Rxd6 {[%clk 0:01:34.9]} 63... Ra5 {[%clk 0:00:02.7]} 64. e6
{[%clk 0:01:31.3]} 64... a2 {[%clk 0:00:01.6]} 65. Bxa2 {[%clk 0:01:31.9]} 65...
Rxa2 {[%clk 0:00:01.2]} 66. e7 {[%clk 0:01:32.2]} 1-0

[Event "Late-Titled-Tuesday-Blitz-October-03-2023"]
[Site "Chess.com"]
[Date "2023.10.03"]
[Round "4"]
[White "SpeedofLight0"]
[Black "tomozupan"]
[Result "1-0"]
[WhiteElo "3019"]
[BlackElo "2246"]
[TimeControl "180+1"]
[EndTime "14:38:21 PDT"]
[Termination "SpeedofLight0 won on time"]

1. Nf3 {[%clk 0:02:43.8]} 1... Nf6 {[%clk 0:02:59.1]} 2. b3 {[%clk 0:02:44.7]}
2... g6 {[%clk 0:02:58.6]} 3. Bb2 {[%clk 0:02:40.7]} 3... Bg7 {[%clk 0:02:59.2]}
4. g3 {[%clk 0:02:41.4]} 4... O-O {[%clk 0:02:58.7]} 5. Bg2 {[%clk 0:02:42]}
5... d5 {[%clk 0:02:58.5]} 6. O-O {[%clk 0:02:36.6]} 6... c5 {[%clk 0:02:58.1]}
7. e3 {[%clk 0:02:35.7]} 7... Nc6 {[%clk 0:02:58.3]} 8. d4 {[%clk 0:02:35.5]}
8... cxd4 {[%clk 0:02:52.6]} 9. exd4 {[%clk 0:02:36.4]} 9... Qc7 {[%clk
0:02:49.8]} 10. Re1 {[%clk 0:01:55.5]} 10... Ne4 {[%clk 0:02:48.1]} 11. Nc3
{[%clk 0:01:50.8]} 11... Nxc3 {[%clk 0:02:30]} 12. Bxc3 {[%clk 0:01:51.7]} 12...
e6 {[%clk 0:02:23.6]} 13. Rc1 {[%clk 0:01:38.5]} 13... Bd7 {[%clk 0:02:23]} 14.
h4 {[%clk 0:01:31.6]} 14... h5 {[%clk 0:02:21.7]} 15. Qd2 {[%clk 0:01:30.9]}
15... Rac8 {[%clk 0:02:17]} 16. Bb2 {[%clk 0:01:28.9]} 16... Ne7 {[%clk
0:02:12.8]} 17. Ne5 {[%clk 0:01:27.3]} 17... Nf5 {[%clk 0:02:04.8]} 18. c4
{[%clk 0:00:46.3]} 18... Qd6 {[%clk 0:00:55.3]} 19. c5 {[%clk 0:00:39.1]} 19...
Qe7 {[%clk 0:00:53.8]} 20. Rc2 {[%clk 0:00:35.7]} 20... Rc7 {[%clk 0:00:51.5]}
21. Qd3 {[%clk 0:00:25.9]} 21... Rfc8 {[%clk 0:00:50]} 22. Bh3 {[%clk
0:00:24.4]} 22... Qf6 {[%clk 0:00:19.2]} 23. Bc1 {[%clk 0:00:23.2]} 23... Qe7
{[%clk 0:00:07.1]} 24. Bg5 {[%clk 0:00:19]} 24... Bf6 {[%clk 0:00:05.9]} 25. Bf4
{[%clk 0:00:18.9]} 25... Bc6 {[%clk 0:00:04.3]} 26. b4 {[%clk 0:00:10.7]} 26...
a6 {[%clk 0:00:04]} 27. Rce2 {[%clk 0:00:08]} 27... Ng7 {[%clk 0:00:02.4]} 28.
Re3 {[%clk 0:00:05.5]} 28... Bb5 {[%clk 0:00:02.3]} 29. Qb1 {[%clk 0:00:05.3]}
29... Ne8 {[%clk 0:00:01.6]} 30. Nxg6 {[%clk 0:00:05.3]} 30... fxg6 {[%clk
0:00:01.2]} 31. Bxe6+ {[%clk 0:00:05.5]} 1-0

[Event "Late-Titled-Tuesday-Blitz-October-03-2023"]
[Site "Chess.com"]
[Date "2023.10.03"]
[Round "4"]
[White "Veleamater"]
[Black "2346PL"]
[Result "1/2-1/2"]
[WhiteElo "2326"]
[BlackElo "2492"]
[TimeControl "180+1"]
[EndTime "14:38:23 PDT"]
[Termination "Game drawn by repetition"]

1. g3 {[%clk 0:03:00.9]} 1... d6 {[%clk 0:03:00.9]} 2. Bg2 {[%clk 0:03:00.4]}
2... e5 {[%clk 0:03:01.2]} 3. h3 {[%clk 0:03:00.7]} 3... f5 {[%clk 0:03:01.5]}
4. c3 {[%clk 0:02:59.1]} 4... Nf6 {[%clk 0:03:01.9]} 5. d4 {[%clk 0:02:58.4]}
5... e4 {[%clk 0:03:02.1]} 6. e3 {[%clk 0:02:57.3]} 6... Be7 {[%clk 0:03:01.5]}
7. Ne2 {[%clk 0:02:57.4]} 7... O-O {[%clk 0:03:01.6]} 8. h4 {[%clk 0:02:57.1]}
8... b6 {[%clk 0:02:58.1]} 9. Nf4 {[%clk 0:02:57.2]} 9... d5 {[%clk 0:02:56.7]}
10. h5 {[%clk 0:02:57.2]} 10... c6 {[%clk 0:02:50.3]} 11. b3 {[%clk 0:02:57.3]}
11... Bd6 {[%clk 0:02:46.8]} 12. Nd2 {[%clk 0:02:50.7]} 12... Qe7 {[%clk
0:02:46]} 13. Nf1 {[%clk 0:02:50.1]} 13... Ba6 {[%clk 0:02:44.7]} 14. Nh2 {[%clk
0:02:49.1]} 14... Nbd7 {[%clk 0:02:43.3]} 15. Bd2 {[%clk 0:02:48.6]} 15... c5
{[%clk 0:02:43.4]} 16. Rc1 {[%clk 0:02:45.1]} 16... Rac8 {[%clk 0:02:42.7]} 17.
Bf1 {[%clk 0:02:42.6]} 17... Bxf1 {[%clk 0:02:41.3]} 18. Kxf1 {[%clk 0:02:42.5]}
18... cxd4 {[%clk 0:02:35.3]} 19. exd4 {[%clk 0:02:39.6]} 19... e3 {[%clk
0:02:30.3]} 20. Bxe3 {[%clk 0:02:39.8]} 20... Ne4 {[%clk 0:02:30.3]} 21. Qd3
{[%clk 0:02:37]} 21... Ndf6 {[%clk 0:02:27.2]} 22. Nf3 {[%clk 0:02:35.8]} 22...
Rfd8 {[%clk 0:02:16.2]} 23. Kg2 {[%clk 0:02:34.7]} 23... Qf7 {[%clk 0:02:11.9]}
24. Rh3 {[%clk 0:02:30.3]} 24... Ng4 {[%clk 0:02:11.6]} 25. Rc2 {[%clk
0:02:25.5]} 25... Bb8 {[%clk 0:02:07]} 26. c4 {[%clk 0:02:23.7]} 26... dxc4
{[%clk 0:02:04.7]} 27. bxc4 {[%clk 0:02:23.4]} 27... Qb7 {[%clk 0:02:02.2]} 28.
d5 {[%clk 0:02:23.2]} 28... b5 {[%clk 0:01:59.2]} 29. Nd4 {[%clk 0:02:19.8]}
29... bxc4 {[%clk 0:01:57.1]} 30. Rxc4 {[%clk 0:02:19.6]} 30... Bxf4 {[%clk
0:01:54.5]} 31. gxf4 {[%clk 0:02:17.8]} 31... Qxd5 {[%clk 0:01:53.6]} 32. Rxc8
{[%clk 0:02:14.9]} 32... Rxc8 {[%clk 0:01:54.1]} 33. Qb3 {[%clk 0:02:13.8]}
33... Qxb3 {[%clk 0:01:44.6]} 34. axb3 {[%clk 0:02:13.9]} 34... g6 {[%clk
0:01:25]} 35. hxg6 {[%clk 0:02:06.6]} 35... hxg6 {[%clk 0:01:25.9]} 36. Kf3
{[%clk 0:02:00.9]} 36... Rc3 {[%clk 0:01:19.6]} 37. Kg2 {[%clk 0:01:47]} 37...
Nexf2 {[%clk 0:01:07.6]} 38. Bxf2 {[%clk 0:01:44.4]} 38... Rxh3 {[%clk
0:01:07.2]} 39. Kxh3 {[%clk 0:01:43.3]} 39... Nxf2+ {[%clk 0:01:07.5]} 40. Kg2
{[%clk 0:01:43.3]} 40... Ne4 {[%clk 0:01:06.1]} 41. Nc6 {[%clk 0:01:41.2]} 41...
a6 {[%clk 0:01:04]} 42. Nb8 {[%clk 0:01:39.8]} 42... Nc5 {[%clk 0:00:56.7]} 43.
b4 {[%clk 0:01:39.1]} 43... Nd3 {[%clk 0:00:55.2]} 44. Nxa6 {[%clk 0:01:37.8]}
44... Nxf4+ {[%clk 0:00:55.8]} 45. Kf3 {[%clk 0:01:37.2]} 45... Nd5 {[%clk
0:00:53.4]} 46. b5 {[%clk 0:01:35.4]} 46... Kf7 {[%clk 0:00:53]} 47. Nc5 {[%clk
0:01:35.4]} 47... Ke7 {[%clk 0:00:51.6]} 48. Na4 {[%clk 0:01:34.8]} 48... Kd6
{[%clk 0:00:51.1]} 49. b6 {[%clk 0:01:34.3]} 49... Kc6 {[%clk 0:00:50]} 50. Nb2
{[%clk 0:01:30.7]} 50... Kxb6 {[%clk 0:00:50.1]} 51. Nc4+ {[%clk 0:01:31.6]}
51... Kc5 {[%clk 0:00:49.4]} 52. Ne5 {[%clk 0:01:32.5]} 52... g5 {[%clk
0:00:49.2]} 53. Nf7 {[%clk 0:01:24.4]} 53... g4+ {[%clk 0:00:49.4]} 54. Kg3
{[%clk 0:01:24.6]} 54... Kd4 {[%clk 0:00:50]} 55. Nh6 {[%clk 0:01:24.2]} 55...
Ke4 {[%clk 0:00:49.1]} 56. Nxg4 {[%clk 0:01:24.1]} 56... f4+ {[%clk 0:00:47.2]}
57. Kf2 {[%clk 0:01:23.1]} 57... Nb4 {[%clk 0:00:45.6]} 58. Nf6+ {[%clk
0:01:22.7]} 58... Kf5 {[%clk 0:00:46]} 59. Nh5 {[%clk 0:01:21]} 59... Nd3+
{[%clk 0:00:43.9]} 60. Kf3 {[%clk 0:01:21.2]} 60... Ne5+ {[%clk 0:00:44.2]} 61.
Kf2 {[%clk 0:01:21.3]} 61... f3 {[%clk 0:00:44.4]} 62. Kg3 {[%clk 0:01:20.3]}
62... Ke4 {[%clk 0:00:43.1]} 63. Nf4 {[%clk 0:01:19]} 63... Ke3 {[%clk 0:00:42]}
64. Nd5+ {[%clk 0:01:17.9]} 64... Kd2 {[%clk 0:00:42.3]} 65. Nf6 {[%clk
0:01:12.5]} 65... Ke2 {[%clk 0:00:40.1]} 66. Ne4 {[%clk 0:01:11.4]} 66... Ke3
{[%clk 0:00:38]} 67. Nf2 {[%clk 0:01:10.3]} 67... Nc4 {[%clk 0:00:28.8]} 68.
Nd1+ {[%clk 0:01:10.3]} 68... Ke2 {[%clk 0:00:27.4]} 69. Nc3+ {[%clk 0:01:10.3]}
69... Ke3 {[%clk 0:00:27.5]} 70. Nd1+ {[%clk 0:01:10.2]} 70... Ke4 {[%clk
0:00:27]} 71. Nc3+ {[%clk 0:01:09.9]} 71... Ke3 {[%clk 0:00:27.7]} 72. Nd1+
{[%clk 0:01:09.7]} 1/2-1/2

[Event "Late-Titled-Tuesday-Blitz-October-03-2023"]
[Site "Chess.com"]
[Date "2023.10.03"]
[Round "4"]
[White "Mikhail_Golubev"]
[Black "RIPOL"]
[Result "1-0"]
[WhiteElo "2611"]
[BlackElo "2433"]
[TimeControl "180+1"]
[EndTime "14:38:25 PDT"]
[Termination "Mikhail_Golubev won by resignation"]

1. e4 {[%clk 0:03:00.9]} 1... Nf6 {[%clk 0:02:58.9]} 2. e5 {[%clk 0:02:59.5]}
2... Nd5 {[%clk 0:02:58.5]} 3. d4 {[%clk 0:03:00.1]} 3... d6 {[%clk 0:02:58.4]}
4. Nf3 {[%clk 0:03:00.7]} 4... g6 {[%clk 0:02:57.6]} 5. Bc4 {[%clk 0:03:00]}
5... Nb6 {[%clk 0:02:57]} 6. Bb3 {[%clk 0:03:00.1]} 6... Bg7 {[%clk 0:02:56.9]}
7. a4 {[%clk 0:02:55.6]} 7... a5 {[%clk 0:02:54.5]} 8. Ng5 {[%clk 0:02:42.7]}
8... e6 {[%clk 0:02:52.5]} 9. Qf3 {[%clk 0:02:31.9]} 9... Qd7 {[%clk 0:02:35.2]}
10. Ne4 {[%clk 0:02:21.1]} 10... Qc6 {[%clk 0:01:38.2]} 11. Nf6+ {[%clk
0:01:52.2]} 11... Kf8 {[%clk 0:01:37]} 12. Qg3 {[%clk 0:01:28.2]} 12... N8d7
{[%clk 0:01:34.8]} 13. Nxd7+ {[%clk 0:01:20.7]} 13... Nxd7 {[%clk 0:01:27.3]}
14. Bf4 {[%clk 0:01:12.2]} 14... dxe5 {[%clk 0:01:16.3]} 15. dxe5 {[%clk
0:01:11.9]} 15... Nc5 {[%clk 0:01:16.6]} 16. O-O {[%clk 0:01:01.6]} 16... b6
{[%clk 0:01:13]} 17. Nc3 {[%clk 0:00:58.4]} 17... Bb7 {[%clk 0:01:09.1]} 18. f3
{[%clk 0:00:58.3]} 18... h6 {[%clk 0:01:00.7]} 19. h4 {[%clk 0:00:58.2]} 19...
Kg8 {[%clk 0:00:59.5]} 20. Bc4 {[%clk 0:00:51.8]} 20... Ba6 {[%clk 0:00:53.7]}
21. Bb5 {[%clk 0:00:51.1]} 21... Bxb5 {[%clk 0:00:52.8]} 22. axb5 {[%clk
0:00:51.9]} 22... Qe8 {[%clk 0:00:51.1]} 23. Be3 {[%clk 0:00:44.8]} 23... Nd7
{[%clk 0:00:47.2]} 24. f4 {[%clk 0:00:44.7]} 24... Kh7 {[%clk 0:00:46]} 25. h5
{[%clk 0:00:44.5]} 25... Rg8 {[%clk 0:00:40.4]} 26. Ne4 {[%clk 0:00:41.7]} 26...
Bh8 {[%clk 0:00:37.2]} 27. Qh3 {[%clk 0:00:35.1]} 27... Nf8 {[%clk 0:00:27.1]}
28. hxg6+ {[%clk 0:00:23.8]} 28... Rxg6 {[%clk 0:00:25.6]} 29. f5 {[%clk
0:00:23.4]} 29... exf5 {[%clk 0:00:24.9]} 30. Rxf5 {[%clk 0:00:23.4]} 30... Ne6
{[%clk 0:00:23.1]} 31. Raf1 {[%clk 0:00:21.1]} 31... Kg8 {[%clk 0:00:20.2]} 32.
Rxf7 {[%clk 0:00:20.7]} 32... Qxf7 {[%clk 0:00:15.7]} 33. Rxf7 {[%clk
0:00:21.6]} 33... Kxf7 {[%clk 0:00:15.9]} 34. Qf5+ {[%clk 0:00:17.7]} 34... Kg7
{[%clk 0:00:15.5]} 35. Nf6 {[%clk 0:00:16.6]} 35... Ng5 {[%clk 0:00:11.9]} 36.
Nh5+ {[%clk 0:00:13.7]} 36... Kh7 {[%clk 0:00:10.7]} 37. Nf4 {[%clk 0:00:12.8]}
1-0

[Event "Late-Titled-Tuesday-Blitz-October-03-2023"]
[Site "Chess.com"]
[Date "2023.10.03"]
[Round "4"]
[White "martinbitel"]
[Black "Dr_crypt"]
[Result "0-1"]
[WhiteElo "2234"]
[BlackElo "2442"]
[TimeControl "180+1"]
[EndTime "14:38:25 PDT"]
[Termination "Dr_crypt won by checkmate"]

1. d4 {[%clk 0:03:00.9]} 1... Nf6 {[%clk 0:01:47.6]} 2. c4 {[%clk 0:02:57.7]}
2... e6 {[%clk 0:01:48.5]} 3. Nf3 {[%clk 0:02:57.4]} 3... Bb4+ {[%clk
0:01:48.3]} 4. Bd2 {[%clk 0:02:56.4]} 4... Qe7 {[%clk 0:01:48.7]} 5. a3 {[%clk
0:02:53]} 5... Bxd2+ {[%clk 0:01:47.4]} 6. Qxd2 {[%clk 0:02:52.7]} 6... d6
{[%clk 0:01:48.3]} 7. Nc3 {[%clk 0:02:52.3]} 7... e5 {[%clk 0:01:48.7]} 8. dxe5
{[%clk 0:02:31.9]} 8... dxe5 {[%clk 0:01:49.6]} 9. g3 {[%clk 0:02:27.4]} 9... c6
{[%clk 0:01:49.3]} 10. Bg2 {[%clk 0:02:23.2]} 10... O-O {[%clk 0:01:49.9]} 11.
O-O {[%clk 0:02:22]} 11... h6 {[%clk 0:01:36.1]} 12. Qc2 {[%clk 0:02:18]} 12...
Nbd7 {[%clk 0:01:28.6]} 13. Nd2 {[%clk 0:02:03.9]} 13... a5 {[%clk 0:01:27.6]}
14. Rad1 {[%clk 0:01:52.1]} 14... Re8 {[%clk 0:01:24.8]} 15. Nde4 {[%clk
0:01:51.6]} 15... Nf8 {[%clk 0:01:23.7]} 16. Nd6 {[%clk 0:01:46.8]} 16... Rd8
{[%clk 0:01:23.3]} 17. c5 {[%clk 0:01:40.7]} 17... Ne6 {[%clk 0:01:19.8]} 18. b4
{[%clk 0:01:36.1]} 18... axb4 {[%clk 0:01:19.9]} 19. axb4 {[%clk 0:01:35.6]}
19... Nd4 {[%clk 0:01:15.4]} 20. Qb2 {[%clk 0:01:31.7]} 20... Be6 {[%clk
0:01:13.7]} 21. e3 {[%clk 0:01:21.4]} 21... Nf5 {[%clk 0:00:43.2]} 22. Nxf5
{[%clk 0:00:57.3]} 22... Bxf5 {[%clk 0:00:44.1]} 23. Ra1 {[%clk 0:00:56.7]}
23... Bd3 {[%clk 0:00:40.5]} 24. Rfd1 {[%clk 0:00:52.3]} 24... e4 {[%clk
0:00:40.4]} 25. Na4 {[%clk 0:00:33.2]} 25... Nd5 {[%clk 0:00:37.6]} 26. Bf1
{[%clk 0:00:21.2]} 26... Bxf1 {[%clk 0:00:25.7]} 27. Kxf1 {[%clk 0:00:21.5]}
27... Qe6 {[%clk 0:00:24.4]} 28. Kg2 {[%clk 0:00:20.2]} 28... h5 {[%clk
0:00:24.8]} 29. Nc3 {[%clk 0:00:14.8]} 29... Rxa1 {[%clk 0:00:19.2]} 30. Rxa1
{[%clk 0:00:14.2]} 30... h4 {[%clk 0:00:18.8]} 31. gxh4 {[%clk 0:00:09.7]} 31...
Qg4+ {[%clk 0:00:18.2]} 32. Kh1 {[%clk 0:00:07.2]} 32... Qf3+ {[%clk 0:00:17.8]}
33. Kg1 {[%clk 0:00:07.3]} 33... Nxe3 {[%clk 0:00:13.5]} 34. fxe3 {[%clk
0:00:05.9]} 34... Qxe3+ {[%clk 0:00:14.4]} 35. Kh1 {[%clk 0:00:06.3]} 35... Rd2
{[%clk 0:00:13.7]} 36. Qa3 {[%clk 0:00:04.3]} 36... Qf3+ {[%clk 0:00:12.9]} 37.
Kg1 {[%clk 0:00:03.8]} 37... Qg2# {[%clk 0:00:12.9]} 0-1